fUSD/lending_fUSD_20251109
["ID","MTS","AMOUNT","RATE_DAILY","PERIOD"]
[393446780,1762668572411,-305.33426883,0.00016729,2]
[393446781,1762668589049,-347.42783103,0.00016729,2]
[393446782,1762668591228,-274.81412696,0.00016729,2]
[393446783,1762668596813,-165.356719,0.00016729,2]
[393446784,1762668598419,-265.17897847,0.00016729,2]
[393446785,1762668600062,-195.7916167,0.00016729,2]
[393446786,1762668619090,-195.00000016,0.00016728,2]
[393446787,1762668621372,-253.02582709,0.00016728,2]
[393446788,1762668623557,-354.72039396,0.00016728,2]
[393446789,1762668625126,-250.0,0.00016728,2]
[393446790,1762668630077,-147.25377879,0.00016728,2]
[393446791,1762668630102,-193.72660967,0.00016728,2]
[393446792,1762668631721,-106.27339033,0.00016728,2]
[393446793,1762668631732,-19974.77825407,0.00016729,2]
[393446794,1762668631741,-277.58350184,0.00016729,2]
[393446795,1762668631751,-195.0,0.00016729,2]
[393446796,1762668631760,-55.03722737,0.00016729,2]
[393446797,1762668631770,-195.0,0.00016787,2]
[393446798,1762668631779,-224.72392386,0.000168,2]
[393446799,1762668631790,-500.0,0.000168,2]
[393446800,1762668631799,-300.0,0.00016806,2]
[393446801,1762668631809,-2090.0,0.0001687,2]
[393446802,1762668631818,-492.8,0.00016913,2]
[393446803,1762668631827,-500.0,0.00016973,2]
[393446804,1762668631838,-1200.0,0.00016995,2]
[393446805,1762668631848,-550.0,0.00016995,2]
[393446806,1762668631857,-500.0,0.00016996,2]
[393446807,1762668631866,-500.0,0.00016996,2]
[393446808,1762668631876,-500.0,0.00016996,2]
[393446809,1762668631886,-456.99168339,0.00016996,2]
[393446810,1762668631896,-500.0,0.00016996,2]
[393446811,1762668631906,-500.0,0.00016996,2]
[393446812,1762668631916,-298.65795488,0.00016996,2]
[393446813,1762668631925,-500.0,0.00016996,2]
[393446814,1762668631935,-500.0,0.00016996,2]
[393446815,1762668631945,-500.0,0.00016996,2]
[393446816,1762668631955,-500.0,0.00016996,2]
[393446817,1762668631965,-500.0,0.00016996,2]
[393446818,1762668631975,-500.0,0.00016996,2]
[393446819,1762668631985,-500.0,0.00016996,2]
[393446820,1762668631995,-500.0,0.00016996,2]
[393446821,1762668632005,-500.0,0.00016996,2]
[393446822,1762668632015,-500.0,0.00016996,2]
[393446823,1762668632026,-500.0,0.00016996,2]
[393446824,1762668632037,-500.0,0.00016996,2]
[393446825,1762668632046,-500.0,0.00016996,2]
[393446826,1762668632056,-500.0,0.00016996,2]
[393446827,1762668632068,-500.0,0.00016996,2]
[393446828,1762668632080,-500.0,0.00016996,2]
[393446829,1762668632089,-500.0,0.00016996,2]
[393446830,1762668632099,-500.0,0.00016996,2]
[393446831,1762668632109,-500.0,0.00016996,2]
[393446832,1762668632118,-500.0,0.00016996,2]
[393446833,1762668632128,-500.0,0.00016996,2]
[393446834,1762668632137,-500.0,0.00016996,2]
[393446835,1762668632146,-394.54182978,0.00016996,2]
[393446836,1762668632155,-500.0,0.00016996,2]
[393446837,1762668632166,-569.08359772,0.00016996,2]
[393446838,1762668632175,-341.00928863,0.00016996,2]
[393446839,1762668632185,-1008.1,0.00016996,2]
[393446840,1762668632194,-2357.07,0.00016997,2]
[393446841,1762668632203,-17510.65,0.00016997,2]
[393446842,1762668632213,-7638.24,0.00016997,2]
[393446843,1762668632222,-7484.28,0.00016997,2]
[393446844,1762668632232,-37816.28,0.00016998,2]
[393446845,1762668632241,-9999.99,0.00016998,2]
[393446846,1762668632251,-9999.99,0.00016998,2]
[393446847,1762668632260,-64218.9026,0.00016999,2]
[393446848,1762668632269,-1717.38,0.00016999,2]
[393446849,1762668632278,-299.99,0.00016999,4]
[393446850,1762668632287,-9999.99,0.00016999,2]
[393446851,1762668632297,-499.99,0.00016999,2]
[393446852,1762668632306,-150.99,0.00016999,2]
[393446853,1762668632315,-819.89,0.00016999,2]
[393446854,1762668632324,-250.0,0.00017,2]
[393446855,1762668632333,-500.0,0.00017,2]
[393446856,1762668632343,-1008.1,0.0001727,2]
[393446857,1762668632353,-166.66,0.00017325,2]
[393446858,1762668632362,-477.21,0.000175,2]
[393446859,1762668632371,-216.0,0.00017517,2]
[393446860,1762668632381,-216.0,0.00017519,2]
[393446861,1762668632391,-834.97782505,0.00017521,2]
[393446862,1762668632401,-295.11,0.00017543,2]
[393446863,1762668632411,-1008.1,0.00017544,2]
[393446864,1762668632420,-1000.0,0.00017548,2]
[393446865,1762668632430,-216.0,0.00017637,2]
[393446866,1762668632439,-1000.0,0.00017665,2]
[393446867,1762668632448,-2500.0,0.00017665,2]
[393446868,1762668632457,-1726.84557519,0.00017699,2]
[393446869,1762668632467,-262.67,0.00017738,2]
[393446870,1762668632477,-150.0,0.00017743,2]
[393446871,1762668632486,-150.0,0.00017769,2]
[393446872,1762668632496,-163.29081517,0.0001777,2]
[393446873,1762668632506,-2000.0,0.000178,2]
[393446874,1762668632518,-81.58449705,0.000178,2]
[393446875,1762668632530,-278.96348675,0.000178,2]
[393446876,1762668632547,-110.0120162,0.000178,2]
[393446877,1762668632556,-500.0,0.00017804,2]
[393446878,1762668632565,-150.0,0.00017815,2]
[393446879,1762668632574,-150.0,0.00017817,2]
[393446880,1762668632585,-405.63330871,0.00017818,2]
[393446881,1762668632596,-580.36061433,0.00017818,2]
[393446882,1762668632607,-22.10607696,0.00017818,2]
[393446883,1762668632617,-500.0,0.00017832,2]
[393446884,1762668632626,-150.0,0.00017844,2]
[393446885,1762668632636,-100.68514634,0.00017856,2]
[393446886,1762668632647,-1317.37814711,0.00017856,2]
[393446887,1762668632659,-581.93670655,0.00017856,2]
[393446888,1762668632670,-200.0,0.00017856,2]
[393446889,1762668632679,-1040.86,0.00017874,2]
[393446890,1762668632689,-177.382,0.00017874,2]
[393446891,1762668632699,-150.0,0.00017878,2]
[393446892,1762668632708,-166.66,0.00017897,2]
[393446893,1762668632718,-9.84224823,0.00017898,2]
[393446894,1762668632730,-140.15775177,0.00017898,2]
[393446895,1762668632740,-1196.66590776,0.000179,2]
[393446896,1762668632749,-1000.0,0.000179,2]
[393446897,1762668632758,-780.0,0.000179,2]
[393446898,1762668632768,-2634.69418983,0.000179,2]
[393446899,1762668632787,-1562.85869457,0.000179,2]
[393446900,1762668632807,-473.32,0.000179,2]
[393446901,1762668632819,-329.1271156,0.000179,2]
[393446902,1762668632828,-191.94711029,0.000179,2]
[393446903,1762668632839,-875.4934929,0.000179,2]
[393446904,1762668632848,-150.0,0.00017902,2]
[393446905,1762668632859,-150.0,0.00017908,2]
[393446906,1762668632870,-150.0,0.00017943,2]
[393446907,1762668632881,-150.0,0.00017946,2]
[393446908,1762668632891,-326.80210895,0.00017972,2]
[393446909,1762668632900,-167.05193794,0.00017972,2]
[393446910,1762668632910,-150.40351308,0.00017972,2]
[393446912,1762668637614,-231.26223248,0.00017907,2]
[393446913,1762668637624,-349.59648692,0.00017972,2]
[393446914,1762668637635,-500.0,0.00017972,2]
[393446915,1762668637817,-160.84602644,0.00017973,2]
[393446916,1762668637828,-593.11296609,0.00017973,2]
[393446917,1762668637839,-500.0,0.00017973,2]
[393446918,1762668637848,-328.34926623,0.00017973,2]
[393446919,1762668637859,-500.0,0.00017973,2]
[393446920,1762668637868,-501.62806124,0.00017973,2]
[393446921,1762668637878,-501.07235546,0.00017973,2]
[393446922,1762668637888,-498.86255117,0.00017973,2]
[393446923,1762668637898,-500.0,0.00017973,2]
[393446924,1762668637908,-500.0,0.00017973,2]
[393446925,1762668637918,-500.0,0.00017973,2]
[393446926,1762668637928,-501.35804619,0.00017973,2]
[393446927,1762668637938,-534.54571909,0.00017973,2]
[393446928,1762668637947,-500.0,0.00017973,2]
[393446929,1762668637957,-342.44575823,0.00017973,2]
[393446930,1762668637967,-500.0,0.00017973,2]
[393446931,1762668637977,-174.8560337,0.00017973,2]
[393446932,1762668637987,-500.0,0.00017973,2]
[393446933,1762668637997,-512.26152283,0.00017973,2]
[393446934,1762668638007,-500.0,0.00017973,2]
[393446936,1762668638016,-500.0,0.00017973,2]
[393446938,1762668638025,-500.0,0.00017973,2]
[393446940,1762668638035,-500.0,0.00017973,2]
[393446942,1762668638044,-500.0,0.00017973,2]
[393446944,1762668638054,-500.67483297,0.00017973,2]
[393446946,1762668638064,-501.60238039,0.00017973,2]
[393446948,1762668638073,-501.34458861,0.00017973,2]
[393446950,1762668638083,-509.10524656,0.00017973,2]
[393446952,1762668638092,-200.0,0.00017973,2]
[393446954,1762668638102,-500.0,0.00017973,2]
[393446956,1762668638111,-500.0,0.00017973,2]
[393446957,1762668638121,-168.46087926,0.00017973,2]
[393446958,1762668638134,-331.53912074,0.00017973,2]
[393446959,1762668638144,-164.51518092,0.00017973,2]
[393446960,1762668638153,-500.39048744,0.00017973,2]
[393446961,1762668638163,-95.70748855,0.00017978,2]
[393446962,1762668638175,-54.29251145,0.00017978,2]
[393446963,1762668638185,-150.0,0.00017984,2]
[393446964,1762668638195,-447.0,0.00017984,2]
[393446965,1762668638205,-500.0,0.00017984,2]
[393446966,1762668638215,-142.93475813,0.00017984,2]
[393446967,1762668638227,-118.17019803,0.00017984,2]
[393446968,1762668638237,-151.0,0.00017997,2]
[393446969,1762668638247,-158.42178585,0.00017997,2]
[393446970,1762668638260,-1529.39969951,0.00017999,2]
[393446971,1762668638284,-1316.00390753,0.00017999,2]
[393446972,1762668638296,-4438.51809466,0.00017999,2]
[393446973,1762668638306,-3417.2276143,0.00017999,2]
[393446974,1762668638315,-5822.0,0.00018,2]
[393446975,1762668638325,-6264.50450793,0.00018,2]
[393446976,1762668639728,-1720.14635433,0.00018,2]
[393446977,1762668639776,-13856.78338679,0.00018,2]
[393446978,1762668639894,-1089.0,0.00018,2]
[393446983,1762668640690,-1.7e-07,0.00018,2]
[393447016,1762668643145,-1000.0,0.000179,2]
[393447017,1762668643155,-5627.20119378,0.00018,2]
[393447018,1762668643205,-534.74828065,0.00018,2]
[393447028,1762668646006,-275.80729716,0.000179,2]
[393447029,1762668646016,-1419.36617284,0.00018,2]
[393447030,1762668646080,-1102.0,0.00018,2]
[393447031,1762668646092,-8732.37049641,0.00018,2]
[393447032,1762668646180,-1493.2312474,0.00018,2]
[393447033,1762669039167,-200.0,0.00016629,2]
[393447034,1762669039188,-119.25593887,0.00016713,2]
[393447035,1762669044178,-174.14909326,0.00016713,2]
[393447036,1762669046521,-14.61672916,0.00016713,2]
[393447037,1762669046544,-251.37650569,0.00016713,2]
[393447038,1762669144409,5211.85,0.00016375,2]
[393447039,1762669144432,10000.01,0.00016375,2]
[393447040,1762669144454,10000.01,0.00016375,2]
[393447041,1762669144480,3976.98,0.00016375,2]
[393447042,1762669171822,200.0,0.00016322,2]
[393447043,1762669238091,999.0,0.00016276,3]
[393447044,1762669278194,150.0,0.00016273,2]
[393447045,1762669410697,200.16337338,0.00016461,2]
[393447046,1762669445721,-160.9951893,0.00016697,2]
[393447047,1762669445744,-42.08139568,0.00016745,2]
[393447048,1762669452891,-194.58939095,0.00016721,2]
[393447049,1762669455546,-154.03410336,0.00016721,2]
[393447050,1762669455570,-140.19650147,0.00016745,2]
[393447051,1762669518945,616.35851672,9e-05,2]
[393447053,1762669662832,2194.61027828,0.00013,2]
[393447054,1762669669205,1662.89783162,0.00015,2]
[393447055,1762669669238,10000.01,0.00015,2]
[393447056,1762669669262,10000.01,0.00015,2]
[393447057,1762669669286,10000.01,0.00015,2]
[393447058,1762669669310,10000.01,0.00015,2]
[393447059,1762669669334,10000.01,0.00015,2]
[393447060,1762669669359,10000.01,0.00015,2]
[393447061,1762669669382,10000.01,0.00015,2]
[393447062,1762669669405,10000.01,0.00015,2]
[393447063,1762669669427,10000.01,0.00015,2]
[393447064,1762669669453,40400.0,0.00015,2]
[393447065,1762669669489,11541.892664,0.00015,2]
[393447066,1762669669509,50000.0,0.00015,2]
[393447067,1762669670294,-195.0,0.00015,2]
[393447068,1762669672785,-158.50682571,0.00015,2]
[393447069,1762669678794,-208.71278554,0.00015,2]
[393447070,1762669681637,-212.37347082,0.00015,2]
[393447071,1762669683007,-300.0,0.00014999,2]
[393447072,1762669683050,-4418.46462258,0.00015,2]
[393447073,1762669683108,-10000.01,0.00015,2]
[393447074,1762669683214,-10000.01,0.00015,2]
[393447075,1762669683298,-193.60214589,0.00015,2]
[393447076,1762669683326,-10000.01,0.00015,2]
[393447077,1762669683436,-10000.01,0.00015,2]
[393447078,1762669683559,-10000.01,0.00015,2]
[393447079,1762669683702,-10000.01,0.00015,2]
[393447080,1762669683817,-10000.01,0.00015,2]
[393447081,1762669683944,-10000.01,0.00015,2]
[393447083,1762669685927,186.59130588,0.000135,2]
[393447084,1762669686227,-10000.01,0.00015,2]
[393447085,1762669689093,-10000.01,0.00015,2]
[393447086,1762669689221,-10000.01,0.00015,2]
[393447087,1762669689371,-10000.01,0.00015,2]
[393447088,1762669689532,-10000.01,0.00015,2]
[393447089,1762669689670,-10000.01,0.00015,2]
[393447090,1762669689785,-10000.01,0.00015,2]
[393447091,1762669689981,-10000.01,0.00015,2]
[393447092,1762669690283,-10000.01,0.00015,2]
[393447093,1762669694278,388.42887652,7.888e-05,2]
[393447094,1762669695216,-10000.01,0.00015,2]
[393447095,1762669695429,-10000.01,0.00015,2]
[393447096,1762669698123,-10000.01,0.00015,2]
[393447097,1762669698228,-10000.01,0.00015,2]
[393447098,1762669698337,-10000.01,0.00015,2]
[393447099,1762669698452,-10000.01,0.00015,2]
[393447100,1762669698544,-10000.01,0.00015,2]
[393447101,1762669698643,-10000.01,0.00015,2]
[393447102,1762669698770,-10000.01,0.00015,2]
[393447103,1762669698919,-10000.01,0.00015,2]
[393447104,1762669699604,-415.72568523,0.00015,2]
[393447105,1762669702986,-151.0,0.00014997,2]
[393447106,1762669703010,-148.1559262,0.00015,2]
[393447107,1762669704319,-10000.01,0.00015,2]
[393447108,1762669704554,-10000.01,0.00015,2]
[393447109,1762669706512,-151.0,0.00015,2]
[393447110,1762669706622,266.09014943,0.000107,2]
[393447111,1762669707209,-10000.01,0.00015,2]
[393447112,1762669707313,-10000.01,0.00015,2]
[393447113,1762669707424,-10000.01,0.00015,2]
[393447114,1762669707535,-10000.01,0.00015,2]
[393447115,1762669707623,-10000.01,0.00015,2]
[393447116,1762669707733,-10000.01,0.00015,2]
[393447117,1762669707855,-10000.01,0.00015,2]
[393447118,1762669707959,-10000.01,0.00015,2]
[393447119,1762669708383,-310.53,0.00015,2]
[393447120,1762669710062,-211.77998632,0.00015,2]
[393447121,1762669710394,-10000.01,0.00015,2]
[393447122,1762669712826,-195.0,0.00015,2]
[393447123,1762669713383,-191.10715,0.00014999,2]
[393447124,1762669713412,-214.819266,0.00014999,2]
[393447125,1762669713441,-500.0,0.00014999,2]
[393447126,1762669713470,-207.55553954,0.00014999,2]
[393447127,1762669713507,52110.32159611,0.00015,3]
[393447128,1762669713531,44816.35198816,0.00015,3]
[393447129,1762669713649,-7773.04608892,0.00015,2]
[393447130,1762669713678,-10000.01,0.00015,2]
[393447131,1762669713696,-10000.01,0.00015,2]
[393447132,1762669713769,-500.0,0.00014999,2]
[393447133,1762669713778,-9500.01,0.00015,2]
[393447134,1762669713848,-500.0,0.00014999,2]
[393447135,1762669713908,-477.62866165,0.00014999,2]
[393447136,1762669713918,-8522.38133835,0.00015,2]
[393447137,1762669713975,-10000.01,0.00015,2]
[393447138,1762669714053,-10000.01,0.00015,2]
[393447139,1762669714406,-10000.01,0.00015,2]
[393447140,1762669714471,-10000.01,0.00015,2]
[393447143,1762669717935,-195.0,0.00015,2]
[393447144,1762669722070,-170.27333368,0.00015,2]
[393447145,1762669723590,-334.20877789,0.00015,2]
[393447146,1762669728067,-176.8,0.00015,2]
[393447147,1762669728399,-10000.01,0.00015,2]
[393447148,1762669728520,-10000.01,0.00015,2]
[393447149,1762669728633,-10000.01,0.00015,2]
[393447150,1762669728761,-10000.01,0.00015,2]
[393447151,1762669728920,-10000.01,0.00015,2]
[393447152,1762669729046,-10000.01,0.00015,2]
[393447153,1762669729354,-10000.01,0.00015,2]
[393447154,1762669729458,-10000.01,0.00015,2]
[393447155,1762669729578,-10000.01,0.00015,2]
[393447156,1762669729701,-10000.01,0.00015,2]
[393447157,1762669731445,-380.46266572,0.00015,2]
[393447158,1762669734111,-208.31562116,0.00014999,2]
[393447159,1762669734456,-291.68437884,0.00014999,2]
[393447160,1762669734490,-500.0,0.00014999,2]
[393447161,1762669734524,-500.0,0.00014999,2]
[393447162,1762669734559,-500.0,0.00014999,2]
[393447163,1762669734741,-500.0,0.00014999,2]
[393447164,1762669734776,-500.0,0.00014999,2]
[393447165,1762669734811,-500.0,0.00014999,2]
[393447166,1762669734845,-500.0,0.00014999,2]
[393447167,1762669734882,-500.0,0.00014999,2]
[393447168,1762669734916,-500.0,0.00014999,2]
[393447169,1762669735017,-500.0,0.00014999,2]
[393447170,1762669735051,-500.0,0.00014999,2]
[393447171,1762669735086,-497.78339047,0.00014999,2]
[393447172,1762669735120,-500.0,0.00014999,2]
[393447173,1762669735149,-500.0,0.00014999,2]
[393447174,1762669735179,-500.0,0.00014999,2]
[393447175,1762669735230,-438.12508847,0.00014999,2]
[393447176,1762669735263,-158.2366574,0.00014999,2]
[393447177,1762669735595,-260.62119445,0.00015,2]
[393447178,1762669735613,-158.2366574,0.00015,2]
[393447179,1762669735639,-2811.71972732,0.00015,2]
[393447180,1762669735653,-10000.01,0.00015,2]
[393447181,1762669735668,-10000.01,0.00015,2]
[393447182,1762669735694,-10000.01,0.00015,2]
[393447183,1762669735709,-10000.01,0.00015,2]
[393447184,1762669735738,-10000.01,0.00015,2]
[393447185,1762669735753,-10000.01,0.00015,2]
[393447186,1762669735774,-10000.01,0.00015,2]
[393447187,1762669735789,-10000.01,0.00015,2]
[393447188,1762669736703,-239.84119403,0.00015,2]
[393447189,1762669737505,-822.61974864,0.000149,2]
[393447190,1762669737540,-8354.77050272,0.00015,2]
[393447191,1762669739123,-294.37900346,0.00015,2]
[393447192,1762669741535,-164.86527014,0.00015,2]
[393447193,1762669743329,-216.03,0.00014999,2]
[393447194,1762669743664,-83.97,0.00014999,2]
[393447196,1762669743699,-9832.07,0.00015,2]
[393447203,1762669743888,-10000.01,0.00015,2]
[393447207,1762669744038,-10000.01,0.00015,2]
[393447210,1762669744152,-10000.01,0.00015,2]
[393447211,1762669744259,-10000.01,0.00015,2]
[393447212,1762669744376,-10000.01,0.00015,2]
[393447213,1762669744481,-10000.01,0.00015,2]
[393447214,1762669744598,-10000.01,0.00015,2]
[393447215,1762669744709,-10000.01,0.00015,2]
[393447216,1762669746554,-10000.01,0.00015,2]
[393447218,1762669752587,-160.9951893,0.00014899,2]
[393447219,1762669752622,-9678.0196214,0.00015,2]
[393447220,1762669752709,-10000.01,0.00015,2]
[393447221,1762669752810,-10000.01,0.00015,2]
[393447222,1762669752922,-10000.01,0.00015,2]
[393447223,1762669753024,-10000.01,0.00015,2]
[393447224,1762669753125,-10000.01,0.00015,2]
[393447225,1762669753226,-10000.01,0.00015,2]
[393447226,1762669753340,-10000.01,0.00015,2]
[393447227,1762669755736,-10000.01,0.00015,2]
[393447228,1762669755950,714.6,0.00013699,2]
[393447229,1762669755982,-10000.01,0.00015,2]
[393447233,1762669757823,-151.0,0.00014997,2]
[393447234,1762669757847,-211.36717236,0.00015,2]
[393447258,1762669767655,-625.21960734,0.000149,2]
[393447259,1762669767701,-8749.57078532,0.00015,2]
[393447260,1762669767797,-10000.01,0.00015,2]
[393447261,1762669767902,-10000.01,0.00015,2]
[393447262,1762669768013,-10000.01,0.00015,2]
[393447263,1762669768502,-500.0,0.00014999,2]
[393447264,1762669768530,-500.0,0.00014999,2]
[393447265,1762669768562,-274.48141015,0.00014999,2]
[393447266,1762669768590,-500.0,0.00014999,2]
[393447267,1762669768617,-235.80580844,0.00014999,2]
[393447268,1762669768742,-454.57990708,0.00014999,2]
[393447269,1762669768775,-500.0,0.00014999,2]
[393447270,1762669768805,-296.36423217,0.00014999,2]
[393447271,1762669768922,-4728.49142357,0.00015,2]
[393447272,1762669768941,-10000.01,0.00015,2]
[393447273,1762669768981,-454.57990708,0.00015,2]
[393447274,1762669769014,-500.0,0.00014999,2]
[393447275,1762669769032,-296.36423217,0.00015,2]
[393447276,1762669769047,-7498.1217215,0.00015,2]
[393447277,1762669769065,-10000.01,0.00015,2]
[393447278,1762669769115,-250.0,0.00014999,2]
[393447279,1762669770701,-250.0,0.00014999,2]
[393447280,1762669770733,-500.0,0.00014999,2]
[393447281,1762669770768,-500.0,0.00014999,2]
[393447282,1762669770803,-500.0,0.00014999,2]
[393447283,1762669770835,-500.0,0.00014999,2]
[393447284,1762669771116,-500.0,0.00014999,2]
[393447285,1762669771125,-5000.01,0.00015,2]
[393447286,1762669771144,-10000.01,0.00015,2]
[393447288,1762669771188,-300.0,0.00015,2]
[393447298,1762669773877,-500.0,0.00014999,2]
[393447299,1762669773913,-500.0,0.00014999,2]
[393447300,1762669773945,-500.0,0.00014999,2]
[393447301,1762669773979,-500.0,0.00014999,2]
[393447302,1762669774012,-500.0,0.00014999,2]
[393447303,1762669774045,-500.0,0.00014999,2]
[393447304,1762669774078,-500.0,0.00014999,2]
[393447305,1762669774112,-500.0,0.00014999,2]
[393447306,1762669774146,-500.0,0.00014999,2]
[393447307,1762669774179,-500.0,0.00014999,2]
[393447308,1762669774353,-500.0,0.00014999,2]
[393447309,1762669774386,-500.0,0.00014999,2]
[393447310,1762669774418,-500.0,0.00014999,2]
[393447311,1762669774450,-539.81849914,0.00014999,2]
[393447312,1762669774483,-500.0,0.00014999,2]
[393447313,1762669774515,-500.0,0.00014999,2]
[393447314,1762669774641,-152.87,0.00015,2]
[393447315,1762669774807,-39.82849914,0.00015,2]
[393447316,1762669774824,-3920.37300172,0.00015,2]
[393447317,1762669774858,-10000.01,0.00015,2]
[393447318,1762669774873,-10000.01,0.00015,2]
[393447319,1762669774911,-10000.01,0.00015,2]
[393447320,1762669774946,-10000.01,0.00015,2]
[393447321,1762669774962,-10000.01,0.00015,2]
[393447322,1762669774984,-10000.01,0.00015,2]
[393447323,1762669776764,-10000.01,0.00015,2]
[393447324,1762669776848,-316.13003576,0.00015,2]
[393447325,1762669776876,-10000.01,0.00015,2]
[393447326,1762669778993,-158.50682571,0.00015,2]
[393447327,1762669779771,-10000.01,0.00015,2]
[393447328,1762669779884,-10000.01,0.00015,2]
[393447330,1762669780017,-10000.01,0.00015,2]
[393447331,1762669780129,-10000.01,0.00015,2]
[393447332,1762669780255,-10000.01,0.00015,2]
[393447333,1762669780367,-10000.01,0.00015,2]
[393447334,1762669780524,-10000.01,0.00015,2]
[393447335,1762669780662,-10000.01,0.00015,2]
[393447336,1762669781782,-188.49424409,0.00015,2]
[393447337,1762669782971,-10000.01,0.00015,2]
[393447338,1762669784712,-375.97381027,0.00015,2]
[393447339,1762669790717,-215.33977821,0.00015,2]
[393447340,1762669792497,-189.62597835,0.00015,2]
[393447343,1762669795243,-164.11,0.00015,2]
[393447344,1762669798432,-178.13541481,0.00014999,2]
[393447346,1762669803924,-300.0,0.00014998,2]
[393447347,1762669803956,-300.0,0.00014998,2]
[393447348,1762669803987,-91.059441,0.00014999,2]
[393447349,1762669804018,-300.0,0.00014999,2]
[393447350,1762669804050,-1200.0,0.00014999,2]
[393447351,1762669804087,-300.0,0.00014999,2]
[393447352,1762669804117,-300.0,0.00014999,2]
[393447353,1762669804147,-150.0,0.00014999,2]
[393447354,1762669804308,-4117.891118,0.00015,2]
[393447355,1762669804338,-10000.01,0.00015,2]
[393447356,1762669804373,-10000.01,0.00015,2]
[393447357,1762669804404,-10000.01,0.00015,2]
[393447358,1762669804449,-10000.01,0.00015,2]
[393447359,1762669804551,-10000.01,0.00015,2]
[393447360,1762669804685,-10000.01,0.00015,2]
[393447361,1762669804792,-10000.01,0.00015,2]
[393447362,1762669805007,-10000.01,0.00015,2]
[393447363,1762669806899,-459.50637106,0.00015,2]
[393447364,1762669806931,-10000.01,0.00015,2]
[393447365,1762669807903,906.325429,7.945e-05,2]
[393447366,1762669808573,-278.62575656,0.0001499,2]
[393447367,1762669810259,-35.23424344,0.0001499,2]
[393447368,1762669810288,-313.86,0.0001499,2]
[393447369,1762669810317,-313.86,0.0001499,2]
[393447370,1762669810347,-313.86,0.0001499,2]
[393447371,1762669810376,-313.86,0.0001499,2]
[393447372,1762669810483,-7418.66151312,0.0001499,2]
[393447373,1762669810514,-430.12151312,0.0001499,2]
[393447374,1762669810537,-9139.76697376,0.0001499,2]
[393447375,1762669810547,-430.12151312,0.0001499,2]
[393447376,1762669810564,-9569.88848688,0.0001499,2]
[393447377,1762669810596,-3011.47,0.0001499,2]
[393447378,1762669810623,-3977.07,0.0001499,2]
[393447379,1762669810664,-10000.01,0.00015,2]
[393447380,1762669810800,-10000.01,0.00015,2]
[393447381,1762669810958,-10000.01,0.00015,2]
[393447382,1762669811052,-10000.01,0.00015,2]
[393447383,1762669811152,-10000.01,0.00015,2]
[393447384,1762669811294,-300.0,0.00015,2]
[393447385,1762669812987,-10000.01,0.00015,2]
[393447386,1762669816034,-10000.01,0.00015,2]
[393447387,1762669816148,-10000.01,0.00015,2]
[393447388,1762669816258,-10000.01,0.00015,2]
[393447389,1762669816379,-10000.01,0.00015,2]
[393447390,1762669816504,-10000.01,0.00015,2]
[393447391,1762669816537,-300.0,0.00015,2]
[393447392,1762669816623,-10000.01,0.00015,2]
[393447393,1762669816750,-10000.01,0.00015,2]